[Event "Indian Blitz Championship 2023"]
[Site "Nashik"]
[Date "2024.03.07"]
[Round "9.10"]
[White "Ratnakaran, K.."]
[Black "Sidhant, Mohapatra"]
[Result "1-0"]
[ECO "A01"]
[WhiteElo "2258"]
[BlackElo "2379"]
[Annotator "RC"]
[PlyCount "75"]
[EventDate "2024.03.07"]
[EventType "blitz"]
[EventCountry "IND"]
[SourceTitle "playchess.com"]
[Source "ChessBase"]
[SourceQuality "1"]
[TimeControl "180+2"]

1. b3 {[%emt 0:00:01]} d5 {[%emt 0:00:05]} 2. Bb2 {[%emt 0:00:01]} Bf5 {[%emt 0:00:01]} 3. d3 {[%emt 0:00:01]} e6 {[%emt 0:00:03]} 4. Nd2 {[%emt 0:00:01]} Nf6 {[%emt 0:00:01]} 5. g3 {[%emt 0:00:03]} h6 {[%emt 0:00:02]} 6. Bg2 {[%emt 0:00:01]} c6 {[%emt 0:00:05]} 7. e4 {[%emt 0:00:02]} Bh7 {[%emt 0:00:03]} 8. Ne2 {[%emt 0:00:02]} Nbd7 {[%emt 0:00:05]} 9. O-O {[%emt 0:00:02]} a5 {[%emt 0:00:02]} 10. a3 {[%emt 0:00:03]} Bd6 {[%emt 0:00:10]} 11. c4 {[%emt 0:00:04]} O-O {[%emt 0:00:07]} 12. h3 {[%emt 0:00:09]} Re8 {[%emt 0:00:07]} 13. f4 {[%emt 0:00:08]} dxe4 {[%emt 0:00:13]} 14. dxe4 {[%emt 0:00:02]} e5 {[%emt 0:00:19]} 15. f5 {[%emt 0:00:06]} Nc5 {[%emt 0:00:20]} 16. Kh2 {[%emt 0:00:06]} Nd3 {[%emt 0:00:08]} 17. Bc3 {[%emt 0:00:04]} b5 {[%emt 0:00:05]} 18. Qc2 {[%emt 0:00:14]} Bc5 {[%emt 0:00:19]} 19. Rf3 {[%emt 0:00:17]} Nf2 {[%emt 0:00:01]} 20. Rf1 {[%emt 0:00:27]} b4 {[%emt 0:00:11]} 21. axb4 {[%emt 0:00:03]} axb4 {[%emt 0:00:01]} 22. Bb2 {[%emt 0:00:01]} Qb6 {[%emt 0:00:30]} 23. g4 {[%emt 0:00:38]} Rad8 {[%emt 0:00:06]} 24. Ng3 {[%emt 0:00:05]} N2xg4+ {[%emt 0:00:10]} 25. hxg4 {[%emt 0:00:02]} Nxg4+ {[%emt 0:00:01]} 26. Kh1 {[%emt 0:00:02]} Ne3 {[%emt 0:00:01]} 27. Rxe3 {[%emt 0:00:04]} Bxe3 {[%emt 0:00:01]} 28. Nf3 {[%emt 0:00:01]} f6 {[%emt 0:00:07]} 29. Nh5 {[%emt 0:00:14]} Kh8 {[%emt 0:00:01]} 30. Bh3 {[%emt 0:00:26]} Rd7 {[%emt 0:00:05]} 31. Rd1 {[%emt 0:00:03]} Qd8 {[%emt 0:00:13]} 32. Rf1 {[%emt 0:00:09]} Qb6 {[%emt 0:00:03]} 33. Qg2 {[%emt 0:00:03]} Rg8 {[%emt 0:00:08]} 34. Bxe5 {[%emt 0:00:06]} fxe5 {[%emt 0:00:07]} 35. Nxe5 {[%emt 0:00:01]} Qc7 {[%emt 0:00:05]} 36. Nxd7 {[%emt 0:00:02]} Qxd7 {[%emt 0:00:00]} 37. f6 {[%emt 0:00:01]} g6 {[%emt 0:00:03]} 38. Bxd7 {[%emt 0:00:02]} 1-0

[Event "Indian Blitz Championship 2023"]
[Site "Nashik"]
[Date "2024.03.07"]
[Round "10.2"]
[White "Laxman, R.R."]
[Black "Raja Rithvik R"]
[Result "0-1"]
[ECO "E04"]
[WhiteElo "2331"]
[BlackElo "2532"]
[Annotator "TA"]
[PlyCount "56"]
[EventDate "2024.03.07"]
[EventType "blitz"]
[EventCountry "IND"]
[SourceTitle "playchess.com"]
[Source "ChessBase"]
[SourceQuality "1"]
[TimeControl "180+2"]

{[%evp 11,56,36,31,-18,31,14,19,4,56,23,15,0,0,0,11,-7,26,-31,-27,-34,-42,-56,0,0,0,-25,0,-10,0,-25,-17,-100,-111,-102,-60,-496,-491,-523,-516,-564,-572,-563,-561,-779,-748,-29990,-491]} 1. d4 {[%emt 0:00:02]} d5 {[%emt 0:00:06]} 2. Nf3 {[%emt 0:00:01]} Nf6 {[%emt 0:00:02]} 3. c4 {[%emt 0:00:02]} e6 {[%emt 0:00:01]} 4. g3 {[%emt 0:00:01]} dxc4 {[%emt 0:00:04]} 5. Bg2 {[%emt 0:00:01]} a6 {[%emt 0:00:08]} 6. O-O {[%emt 0:00:03]} Nc6 {[%emt 0:00:01]} 7. Qd2 {[%emt 0:00:01]} (7. Bg5 $14) 7... Bd7 {[%emt 0:00:20]} (7... Rb8 $11) 8. Rd1 {[%emt 0:00:25]} b5 {[%emt 0:00:31]} 9. Ne5 {[%emt 0:00:04] The position is equal.} Nxe5 {[%emt 0:00:01]} 10. dxe5 {[%emt 0:00:01]} (10. Bxa8 $5 Nc6 11. Bb7 $14) 10... Nd5 $1 {[%emt 0:00:01]} 11. Bxd5 {[%emt 0:00:16]} exd5 {[%emt 0:00:01]} 12. Qxd5 {[%emt 0:00:02][%cal Oa2a4]} c6 {[%emt 0:00:27]} 13. Qe4 {[%emt 0:00:03][%cal Oe5e6]} Qc8 {[%emt 0:00:03]} 14. Nc3 {[%emt 0:00:04]} (14. Bg5 $1 $11) 14... Be7 $15 {[%emt 0:00:10]} 15. Bf4 {[%emt 0:00:09][%cal Oe5e6]} O-O {[%emt 0:00:06]} 16. Qd4 {[%emt 0:00:09]} Be6 {[%emt 0:00:17]} ({Better is} 16... Bf5 $15) 17. Ne4 $11 {[%emt 0:00:03]} c5 {[%emt 0:00:04]} 18. Qe3 {[%emt 0:00:02]} Qc6 {[%emt 0:00:04]} 19. Nd6 {[%emt 0:00:22]} Rad8 {[%emt 0:00:05]} 20. h4 {[%emt 0:00:07]} Rd7 {[%emt 0:00:16]} 21. Qf3 {[%emt 0:00:11]} (21. Rd2 $11 {keeps the balance.}) 21... Qxf3 $17 {[%emt 0:00:04]} 22. exf3 {[%emt 0:00:01]} Rfd8 {[%emt 0:00:16] [#] White must now prevent ...f6.} 23. h5 $2 {[%emt 0:00:05][%mdl 8192] White does not recover from this.} (23. Re1 $15) 23... f6 $19 {[%emt 0:00:02]} 24. Re1 {[%emt 0:00:30]} fxe5 {[%emt 0:00:01]} 25. Rxe5 {[%emt 0:00:01]} Rxd6 {[%emt 0:00:01]} 26. Rae1 {[%emt 0:00:02]} Kf7 {[%emt 0:00:00]} 27. Rxc5 {[%emt 0:00:05]} Rd1 {[%emt 0:00:03]} 28. Bc1 {[%emt 0:01:05]} R1d2 {Weighted Error Value: White=0.87/Black=0.15 (very precise) .  Loses game:     	White=1     	---        Mistake:       	White=2     	Black=3      Inaccurate:     	White=3     	Black=2      OK:         	White=3     	Black=6      Best:        	White=1     	Black=2      Strong:       	---       	Black=1} (28... Rxe1+ $142 29. Kg2 Bxc5 30. g4 Rxc1 31. h6 Rdd1 (31... gxh6 {is a self mate.} 32. b4 cxb3 33. axb3 Rdd1 34. Kg3 Rg1+ 35. Kh3 Bd6 36. b4 Rh1+ 37. Kg2 Rh2#) 32. hxg7 Kxg7 (32... Rg1+ {gets mated.} 33. Kh3 Kxg7 34. Kh4 Bd6 35. Kh5 Rh1+ 36. Kg5 h6#) 33. Kh3 Bxf2 (33... Rh1+ {leads to mate.} 34. Kg3 Bd6+ 35. f4 Rhg1+ 36. Kh2 Bxg4 37. b3 Bxf4#) 34. f4 Bd5 35. g5 Bf3 36. Kh2 Rh1#) 0-1

[Event "Indian Blitz Championship 2023"]
[Site "Nashik"]
[Date "2024.03.07"]
[Round "10.3"]
[White "Ghosh, Diptayan"]
[Black "Ratnakaran, K.."]
[Result "1-0"]
[ECO "A04"]
[WhiteElo "2559"]
[BlackElo "2258"]
[Annotator "TA"]
[PlyCount "95"]
[EventDate "2024.03.07"]
[EventType "blitz"]
[EventCountry "IND"]
[SourceTitle "playchess.com"]
[Source "ChessBase"]
[SourceQuality "1"]
[TimeControl "180+2"]

{[%evp 9,95,27,63,63,70,62,77,72,65,56,66,54,60,39,56,48,71,60,90,94,110,110,110,110,110,110,110,95,104,104,105,109,135,137,141,111,155,106,289,289,246,104,105,114,139,102,143,143,136,136,234,141,216,119,250,116,102,105,119,103,96,91,119,119,155,134,133,137,108,14,0,24,79,23,37,50,198,24,735,728,700,697,669,648,29983,29984,29992,29993]} 1. Nf3 {[%emt 0:00:02]} e6 {[%emt 0:00:01]} 2. g3 {[%emt 0:00:02]} b6 {[%emt 0:00:01]} 3. Bg2 {[%emt 0:00:01]} Bb7 {[%emt 0:03:06]} 4. O-O {[%emt 0:00:03]} d6 {[%emt 0:00:00]} 5. d4 {[%emt 0:00:02][%cal Bd2d4,Bd4d5][%mdl 32]} Nd7 {[%emt 0:00:00]} 6. c4 {[%emt 0:00:01]} Be7 {[%emt 0:00:00]} 7. Nc3 {[%emt 0:00:01]} Ngf6 {[%emt 0:00:00]} 8. d5 {[%emt 0:00:02] White is better.} e5 {[%emt 0:00:00]} 9. e4 {[%emt 0:00:02]} a5 {[%emt 0:00:00]} 10. Rb1 {[%emt 0:00:02]} Nc5 {[%emt 0:00:00]} 11. Qc2 {[%emt 0:00:03]} Bc8 {[%emt 0:00:00]} 12. b3 {[%emt 0:00:04][%cal Bb2b3,Bb3b4][%mdl 32]} Bg4 {[%emt 0:00:00]} 13. Ne1 {[%emt 0:00:07]} Qd7 {[%emt 0:00:00]} 14. a3 {[%emt 0:00:01]} h5 {[%emt 0:00:00][%cal Bh7h5,Bh5h4,Bh4h3][%mdl 32]} 15. b4 {[%emt 0:00:01]} Nb7 {[%emt 0:00:00]} 16. f3 {[%emt 0:00:09] aiming for Nb5.} Bh3 {[%emt 0:00:00]} 17. Nd3 {[%emt 0:00:01]} Bxg2 {[%emt 0:00:00]} 18. Qxg2 {[%emt 0:00:01]} h4 {[%emt 0:00:00]} 19. g4 {[%emt 0:00:03]} h3 {[%emt 0:00:00]} 20. Qe2 {[%emt 0:00:01]} axb4 {[%emt 0:00:00]} 21. axb4 {[%emt 0:00:01]} Nh7 {[%emt 0:00:00]} 22. Be3 {[%emt 0:00:15][%cal Oc4c5]} Bg5 {[%emt 0:00:00]} 23. Bf2 {[%emt 0:00:05]} (23. Ra1 $142 O-O 24. Bxg5 Nxg5 25. b5) 23... Nf8 $2 {[%emt 0:00:00]} (23... O-O $16) 24. Ra1 $18 {[%emt 0:00:01]} Rb8 {[%emt 0:00:00]} 25. Qa2 {[%emt 0:00:16]} (25. c5 $18 bxc5 26. bxc5) 25... Ng6 $16 {[%emt 0:00:00]} 26. Qa4 {[%emt 0:00:00]} Bd2 {[%emt 0:00:00]} 27. Ne2 {[%emt 0:00:14]} Nh4 {[%emt 0:00:00]} 28. Bxh4 {[%emt 0:00:11]} Rxh4 {[%emt 0:00:00]} 29. Kf2 {[%emt 0:00:03]} g5 {[%emt 0:00:52]} (29... f6 $16 30. Qxd7+ Kxd7) 30. Rfd1 {[%emt 0:00:06]} Bf4 {[%emt 0:00:00]} (30... Qxa4 $16 {was necessary.} 31. Rxa4 Bf4) 31. Nexf4 {[%emt 0:00:04]} (31. Qa7 $1 $18 {[%cal Ra7b8]} Qc8 32. Nexf4 gxf4 33. Rdc1) 31... gxf4 {[%emt 0:00:00] Black is weak on the light squares} (31... Qxa4 $16 32. Rxa4 gxf4) 32. Qxd7+ {[%emt 0:00:06]} (32. Qa7 $18 Qc8 33. Rdb1) 32... Kxd7 {[%emt 0:00:00]} 33. Ra7 {[%emt 0:00:01]} Rhh8 {[%emt 0:00:00]} 34. Rc1 {[%emt 0:00:02]} Rhc8 {[%emt 0:00:00]} 35. Ke2 {[%emt 0:00:05]} Ke8 {[%emt 0:00:00]} 36. Kd2 {[%emt 0:00:01]} f6 {[%emt 0:00:00]} 37. Rca1 {[%emt 0:00:17]} Kd7 {[%emt 0:00:00]} 38. Kc3 {[%emt 0:00:01]} Nd8 {[%emt 0:00:00]} 39. c5 {[%emt 0:00:04] White is much more active. The black rooks are passive.} (39. b5 $16) 39... bxc5 $1 $11 {[%emt 0:00:00]} 40. bxc5 {[%emt 0:00:01]} Nf7 $1 {[%emt 0:00:00]} 41. R1a6 {[%emt 0:00:21]} (41. Nb2 $16) 41... Kd8 {[%emt 0:00:00]} 42. Nb4 $36 {[%emt 0:00:02][%mdl 2048] Threatens to win with Nc6+. Black is under pressure.} Ke8 {[%emt 0:00:00] [#]} (42... Rb5 $14) 43. Nc6 $2 {[%emt 0:00:07]} ({White must play} 43. Rc6 $1 $18 {Strongly threatening Na6.} Nd8 44. Rcxc7 dxc5 45. Nd3 (45. Re7+ Kf8 $11) 45... Rxc7 46. Rxc7) 43... Rb1 $2 {[%emt 0:00:00][%mdl 8192] [#]} (43... Rb5 $11) 44. Ra8 $1 $18 {[%emt 0:00:01]} Rxa8 {[%emt 0:00:05]} 45. Rxa8+ {[%emt 0:00:01]} Kd7 {[%emt 0:00:02]} 46. Rf8 {[%emt 0:00:02]} dxc5 {[%emt 0:00:01]} 47. Rxf7+ {[%emt 0:00:01]} Kc8 {[%emt 0:00:01]} 48. Rf8+ {[%emt 0:00:02] Weighted Error Value: White=0.32/Black=0.41.  Loses game:     	---       	Black=2      Missed win:     	White=1     	---        Mistake:       	White=6     	Black=4      Inaccurate:     	White=1     	Black=5      OK:         	White=16    	Black=13     Best:        	---       	Black=2      Strong:       	White=1     	Black=2} 1-0

[Event "Indian Blitz Championship 2023"]
[Site "Nashik"]
[Date "2024.03.07"]
[Round "10.4"]
[White "Ravi, Teja S."]
[Black "Dixit, Nikhil"]
[Result "1-0"]
[ECO "D03"]
[WhiteElo "2437"]
[BlackElo "2334"]
[Annotator "TA"]
[PlyCount "63"]
[EventDate "2024.03.07"]
[EventType "blitz"]
[EventCountry "IND"]
[SourceTitle "playchess.com"]
[Source "ChessBase"]
[SourceQuality "1"]
[TimeControl "180+2"]

{[%evp 10,63,0,-4,25,0,26,12,39,8,42,31,75,54,122,53,64,60,98,89,97,88,100,62,94,100,148,137,149,152,139,103,199,214,224,130,408,402,538,547,704,709,698,689,1224,1047,1073,1027,1275,1238,1033,1002,29992,29993,29993,29994]} 1. d4 {[%emt 0:00:02]} Nf6 {[%emt 0:00:03]} 2. Nf3 {[%emt 0:00:01]} g6 {[%emt 0:00:01]} 3. Bg5 {[%emt 0:00:00]} Bg7 {[%emt 0:00:02]} 4. Nbd2 {[%emt 0:00:01]} d5 {[%emt 0:00:06]} 5. c3 {[%emt 0:00:01]} O-O {[%emt 0:00:02]} 6. e3 {[%emt 0:00:00]} a5 {[%emt 0:00:16]} 7. a4 {[%emt 0:00:08]} c6 {[%emt 0:00:08]} 8. Be2 {[%emt 0:00:01]} h6 {[%emt 0:00:11] The position is equal.} 9. Bh4 {[%emt 0:00:01]} c5 {[%emt 0:00:12]} 10. O-O {[%emt 0:00:03]} Nc6 {[%emt 0:00:01]} 11. dxc5 {[%emt 0:00:03]} Qc7 {[%emt 0:00:21]} ({Black should try} 11... e5 $14) 12. Bg3 {[%emt 0:00:11]} (12. Nd4 $16) 12... e5 $14 {[%emt 0:00:08]} 13. Bb5 {[%emt 0:00:04]} Ne4 {[%emt 0:00:14]} 14. Nxe4 {[%emt 0:00:15]} dxe4 {[%emt 0:00:01]} 15. Nd2 {[%emt 0:01:06]} f5 {[%emt 0:00:01]} 16. f4 {[%emt 0:00:16]} exf3 {[%emt 0:00:29]} 17. Nxf3 {[%emt 0:00:00]} f4 {[%emt 0:00:06]} (17... Be6 $142) 18. exf4 {[%emt 0:00:08]} exf4 {[%emt 0:00:01]} 19. Bf2 {[%emt 0:00:00]} Bg4 {[%emt 0:00:04]} 20. Qd6 {[%emt 0:00:13]} Qxd6 {[%emt 0:00:21]} (20... Qf7 $16) 21. cxd6 $18 {[%emt 0:00:01]} Rad8 {[%emt 0:00:01]} 22. Rad1 {[%emt 0:00:07]} (22. Bb6 $18 Rxd6 23. Bc5) 22... Ne5 $2 {[%emt 0:00:01][%mdl 8192] [#] This move loses the game for Black.} (22... Rf6 $16 23. Bc5 (23. Bb6 Rdxd6 24. Rxd6 Rxd6 $16) 23... Bf8) 23. Bb6 {[%emt 0:00:06][%csl LRa5,LRd8]} Nxf3+ {[%emt 0:00:28]} 24. gxf3 {[%emt 0:00:01]} Bh3 {[%emt 0:00:01]} 25. Bxd8 {[%emt 0:00:10]} Rxd8 {[%emt 0:00:02]} 26. Rfe1 {[%emt 0:00:02]} Bf8 {[%emt 0:00:01]} 27. Re8 {[%emt 0:00:07]} Rxe8 {[%emt 0:00:21]} 28. Bxe8 {[%emt 0:00:01]} g5 {[%emt 0:00:01][%cal Bg6g5,Bg5g4,Bg4f3][%mdl 32]} 29. d7 {[%emt 0:00:12]} Bc5+ {[%emt 0:00:02]} 30. Kh1 {[%emt 0:00:01]} g4 {[%emt 0:00:01]} 31. d8=Q {[%emt 0:00:05]} gxf3 {[%emt 0:00:02]} 32. Bd7+ {[%emt 0:00:01] Weighted Error Value: White=0.18 (very precise) /Black=0.83.  Loses game:     	---       	Black=1      Mistake:       	White=2     	Black=3      Inaccurate:     	White=2     	Black=7      OK:         	White=4     	Black=3      Best:        	White=2     	Black=1} (32. Qxa5 $2 Bg2#) 1-0

[Event "Indian Blitz Championship 2023"]
[Site "Nashik"]
[Date "2024.03.07"]
[Round "10.5"]
[White "Aradhya, Garg"]
[Black "Arhan Chethan Anand"]
[Result "1-0"]
[ECO "D38"]
[WhiteElo "2385"]
[BlackElo "2366"]
[Annotator "TA"]
[PlyCount "83"]
[EventDate "2024.03.07"]
[EventType "blitz"]
[EventCountry "IND"]
[SourceTitle "playchess.com"]
[Source "ChessBase"]
[SourceQuality "1"]
[TimeControl "180+2"]

{[%evp 14,83,20,6,9,16,4,8,10,7,5,10,77,58,71,76,72,66,62,64,66,81,168,162,168,105,196,185,206,162,177,121,273,287,308,204,339,319,663,437,431,438,416,404,402,392,403,410,500,412,1312,498,476,481,535,540,529,548,579,574,618,614,713,702,722,715,662,637,853,811,975,961]} 1. d4 {[%emt 0:00:01]} Nf6 {[%emt 0:00:01]} 2. Nf3 {[%emt 0:00:01]} d5 {[%emt 0:00:01]} 3. c4 {[%emt 0:00:01]} e6 {[%emt 0:00:00]} 4. Nc3 {[%emt 0:00:01]} Bb4 {[%emt 0:00:02]} 5. Bg5 {[%emt 0:00:02]} h6 {[%emt 0:00:01]} 6. Bxf6 {[%emt 0:00:02]} Qxf6 {[%emt 0:00:02]} 7. Qa4+ {[%emt 0:00:06]} Nc6 {[%emt 0:00:02]} 8. e3 {[%emt 0:00:01]} O-O {[%emt 0:00:03]} 9. Rc1 {[%emt 0:00:01]} Rd8 {[%emt 0:00:12]} 10. Be2 {[%emt 0:00:04]} dxc4 {[%emt 0:00:24] The position is equal.} 11. Bxc4 {[%emt 0:00:05]} Bd7 {[%emt 0:00:03]} 12. Qc2 {[%emt 0:00:05]} e5 {[%emt 0:00:12] [#]} (12... Na5 $11 13. Be2 c5) 13. dxe5 $1 $16 {[%emt 0:00:45]} Nxe5 {[%emt 0:00:02]} 14. Nxe5 {[%emt 0:00:02]} Qxe5 {[%emt 0:00:01] [#]} 15. Bxf7+ $1 {[%emt 0:00:01]} Kxf7 {[%emt 0:00:03]} (15... Kh8 16. O-O) 16. Qb3+ {[%emt 0:00:01]} Be6 {[%emt 0:00:39]} 17. Qxb4 {[%emt 0:00:02]} c5 {[%emt 0:00:06]} (17... b6 $16) 18. Qxb7+ $18 {[%emt 0:00:05]} Kg8 {[%emt 0:00:04]} 19. Qe4 {[%emt 0:00:05]} (19. O-O $18) 19... Qf6 {[%emt 0:00:12]} (19... Qxe4 $16 20. Nxe4 Bxa2) 20. O-O {[%emt 0:00:08]} Rab8 {[%emt 0:00:02]} 21. b3 {[%emt 0:00:10]} Rb4 {[%emt 0:00:04]} 22. Qf3 {[%emt 0:00:02]} ({White should play} 22. Qc6 $18) 22... Qg6 $2 {[%emt 0:00:02] Loses the game.} (22... Qxf3 $16 23. gxf3 c4) 23. Rfd1 {[%emt 0:00:15]} Rf8 {[%emt 0:00:03]} 24. Qc6 {[%emt 0:00:05][%cal Oc3d5] Threatens to win with Nd5!} Rg4 {[%emt 0:00:33]} (24... Qf7 $142 25. f3 (25. Qxc5 Qxf2+ 26. Kh1 Rbf4 $14) 25... c4) 25. g3 {[%emt 0:00:02]} (25. Qxc5 {is a self mate.} Rxg2+ 26. Kh1 Rxh2+ (26... Rfxf2 {leads to mate.} 27. Qd6 Qg4 28. Qf4 Rxf4 29. Rd8+ Kh7 30. Ne4 Re2 31. Nf6+ Rxf6 32. Rh8+ Kxh8 33. Rc8+ Bxc8 34. a4 Qg2#) 27. Kxh2 Rxf2+ 28. Kh1 Qg2#) 25... Rf6 $2 {[%emt 0:00:22]} (25... Qf5 26. f4 Kh7) 26. Nd5 {[%emt 0:00:04]} Bxd5 {[%emt 0:00:05]} 27. Qxd5+ {[%emt 0:00:02]} Kh7 {[%emt 0:00:03]} 28. Rxc5 {[%emt 0:00:09] Black must now prevent Rc8.} Rg5 {[%emt 0:00:06]} 29. Qd4 {[%emt 0:00:02]} Rxc5 {[%emt 0:00:20]} 30. Qxc5 {[%emt 0:00:01][%mdl 4096] Endgame. KQR-KQR} Qg4 {[%emt 0:00:03]} 31. Qd4 {[%emt 0:00:10]} Qe2 {[%emt 0:00:06]} (31... Qg6 $142 32. Qd3 (32. Qxa7 Qc2 $18) 32... Ra6) 32. Qd3+ {[%emt 0:00:02]} (32. Qe4+ $142 Rg6 33. Rd6) 32... Qxd3 {[%emt 0:00:02]} 33. Rxd3 {[%emt 0:00:01] KR-KR} Rc6 {[%emt 0:00:01]} 34. Rd7 {[%emt 0:00:03]} a6 {[%emt 0:00:02]} 35. Ra7 {[%emt 0:00:01]} Kg6 {[%emt 0:00:02]} 36. Kg2 {[%emt 0:00:02]} Kf6 {[%emt 0:00:01]} 37. h4 {[%emt 0:00:02]} g5 {[%emt 0:00:02]} 38. hxg5+ {[%emt 0:00:06]} hxg5 {[%emt 0:00:03]} 39. Kf3 {[%emt 0:00:01]} Kf5 {[%emt 0:00:02]} 40. g4+ {[%emt 0:00:05]} Kf6 {[%emt 0:00:03]} 41. a4 {[%emt 0:00:02][%cal Ba2a4,Ba4a5][%mdl 32]} Rb6 {[%emt 0:00:02]} 42. a5 {[%emt 0:00:02] Weighted Error Value: White=0.48/Black=0.49.  Mistake:       	White=3     	Black=7      Inaccurate:     	White=2     	---        OK:         	White=9     	Black=8      Best:        	White=2     	Black=1      Strong:       	White=1     	---        Brilliant:      	White=1     	---} 1-0

[Event "Indian Blitz Championship 2023"]
[Site "Nashik"]
[Date "2024.03.07"]
[Round "10.6"]
[White "Ayush Sharma"]
[Black "Vaz, Ethan"]
[Result "0-1"]
[ECO "E65"]
[WhiteElo "2311"]
[BlackElo "2409"]
[Annotator "TA"]
[PlyCount "104"]
[EventDate "2024.03.07"]
[EventType "blitz"]
[EventCountry "IND"]
[SourceTitle "playchess.com"]
[Source "ChessBase"]
[SourceQuality "1"]
[TimeControl "180+2"]

{[%evp 20,104,29,24,114,31,48,20,20,27,19,16,23,14,35,18,48,14,0,4,47,35,166,38,42,-28,64,23,50,0,0,-2,0,-10,0,-6,0,0,0,0,0,0,0,0,0,0,0,0,0,0,0,-7,0,-7,0,0,0,0,0,0,0,0,0,-21,0,-25,-2,-3,-8,-499,-466,-563,-521,-558,-537,-539,-540,-664,-667,-748,-646,-702,-695,-818,-803,-783,-780]} 1. Nf3 {[%emt 0:00:02]} Nf6 {[%emt 0:00:02]} 2. c4 {[%emt 0:00:01]} g6 {[%emt 0:00:02]} 3. g3 {[%emt 0:00:01]} Bg7 {[%emt 0:00:01]} 4. d4 {[%emt 0:00:01]} O-O {[%emt 0:00:04]} 5. Bg2 {[%emt 0:00:01]} d6 {[%emt 0:00:02]} 6. O-O {[%emt 0:00:02]} c5 {[%emt 0:00:02]} 7. Nc3 {[%emt 0:00:09]} Nc6 {[%emt 0:00:02]} 8. dxc5 {[%emt 0:00:11]} dxc5 {[%emt 0:00:03]} 9. Bf4 {[%emt 0:00:21]} Be6 {[%emt 0:00:17]} 10. Ne5 {[%emt 0:00:07]} Na5 {[%emt 0:00:15]} 11. Qa4 {[%emt 0:00:16]} Qb6 {[%emt 0:00:40] [#]} (11... Nh5 $11 {keeps the balance.}) 12. Rab1 {[%emt 0:00:13]} (12. Nd5 $1 $16 {[%cal Rd5b6]} Nxd5 13. cxd5) 12... Rad8 {[%emt 0:00:35]} 13. Rfc1 {[%emt 0:00:16] Threatening b4.} Qb4 $1 {[%emt 0:00:17] The position is equal.} 14. Nd3 {[%emt 0:00:11]} Qxa4 {[%emt 0:00:05]} 15. Nxa4 {[%emt 0:00:01]} b6 {[%emt 0:00:04]} 16. b3 {[%emt 0:00:11]} Bd7 {[%emt 0:00:10]} 17. Nc3 {[%emt 0:00:02]} Nc6 {[%emt 0:00:03]} 18. Rd1 {[%emt 0:00:06]} Nh5 {[%emt 0:00:12]} 19. Bd2 {[%emt 0:00:02]} Ne5 {[%emt 0:00:07]} 20. Nd5 {[%emt 0:00:07]} e6 {[%emt 0:00:07]} (20... Nxd3 $14 21. Nxe7+ (21. exd3 e6 $11) 21... Kh8 22. exd3 Bg4) 21. Nxe5 {[%emt 0:00:16]} (21. Ne7+ $18 Kh8 22. Bg5 Nxd3 23. Rxd3) 21... Bxe5 $14 {[%emt 0:00:02]} 22. Bc3 {[%emt 0:00:18]} ({White should play} 22. Ne7+ $14 Kg7 23. Bc6) 22... Bg7 {[%emt 0:00:08]} (22... exd5 $11 23. Bxe5 d4) 23. Ne7+ {[%emt 0:00:11]} Kh8 {[%emt 0:00:00][%cal Bg8h8,Bh8g7,Bg7f6,Bf6e7][%mdl 32]} 24. Bxg7+ {[%emt 0:00:02]} (24. Be1 $14) 24... Kxg7 $11 {[%emt 0:00:01]} 25. Nc6 {[%emt 0:00:03]} Bxc6 {[%emt 0:00:03]} 26. Bxc6 {[%emt 0:00:01]} Kf6 {[%emt 0:00:04]} 27. e3 {[%emt 0:00:06]} Ng7 {[%emt 0:00:02]} 28. Kf1 {[%emt 0:00:11]} Nf5 {[%emt 0:00:02]} 29. Ke2 {[%emt 0:00:01]} h5 {[%emt 0:00:02]} 30. h4 {[%emt 0:00:01]} Ke7 {[%emt 0:00:06]} 31. Be4 {[%emt 0:00:02]} Nd6 {[%emt 0:00:01]} 32. Bf3 {[%emt 0:00:01]} Nf5 {[%emt 0:00:03]} 33. a3 {[%emt 0:00:05]} Rxd1 {[%emt 0:00:04]} 34. Rxd1 {[%emt 0:00:01][%mdl 4096] Endgame. KRB-KRN} Rd8 {[%emt 0:00:00]} 35. Rb1 {[%emt 0:00:01]} Nd6 {[%emt 0:00:02]} 36. Rc1 {[%emt 0:00:03]} a5 {[%emt 0:00:02]} 37. Bc6 {[%emt 0:00:13]} Rc8 {[%emt 0:00:02]} 38. Ba4 {[%emt 0:00:01]} Rd8 {[%emt 0:00:02]} 39. Bc6 {[%emt 0:00:04]} Rc8 {[%emt 0:00:00]} 40. Ba4 {[%emt 0:00:01]} Ne4 {[%emt 0:00:07]} 41. Bb5 {[%emt 0:00:09]} Rd8 {[%emt 0:00:02]} 42. Rc2 {[%emt 0:00:01] Prevents Rd2+} Rd6 {[%emt 0:00:03]} 43. Ba6 {[%emt 0:00:07]} Rd7 {[%emt 0:00:03]} 44. Bc8 $2 {[%emt 0:00:02][%mdl 8192]} (44. Bb5 $11 Rc7 45. Kf3) 44... Ra7 $19 {[%emt 0:00:03] Black is clearly winning.} 45. b4 {[%emt 0:00:07]} axb4 {[%emt 0:00:09]} 46. axb4 {[%emt 0:00:01]} cxb4 {[%emt 0:00:00] [#] ...b3 would now be deadly.} 47. Rb2 {[%emt 0:00:02]} Nd6 {[%emt 0:00:01][%csl LRc4,LRc8]} 48. Rxb4 {[%emt 0:00:02]} Nxc8 {[%emt 0:00:01]} 49. f4 {[%emt 0:00:01]} Rc7 {[%emt 0:00:02]} 50. Kf3 {[%emt 0:00:01]} Rc6 {[%emt 0:00:01]} 51. Ke4 {[%emt 0:00:02]} Nd6+ {[%emt 0:00:00]} 52. Kd4 {[%emt 0:00:01]} Nf5+ {[%emt 0:00:02] Weighted Error Value: White=0.47/Black=0.22 (precise) .  Loses game:     	White=1     	---        Mistake:       	White=4     	Black=2      Inaccurate:     	White=2     	Black=3      OK:         	White=9     	Black=11     Best:        	---       	Black=1      Strong:       	---       	Black=1} 0-1